bitfinex/quotes_BTCUSD_20211001
["timestamp","ask_amount","ask_price","bid_price","bid_amount"]
[1633099732595,0.213062,46936.0,46914.0,6.09e-05]
[1633099732596,0.00124775,46925.0,46914.0,6.09e-05]
[1633099732797,0.00121048,46922.0,46914.0,6.09e-05]
[1633099732995,0.00046923,46921.0,46914.0,6.09e-05]
[1633099733199,0.32025123,46921.0,46914.0,6.09e-05]
[1633099733397,0.32025123,46921.0,46918.0,0.23289784]
[1633099733398,0.22787008,46920.0,46918.0,0.23289784]
[1633099733600,0.00121048,46922.0,46918.0,0.23289784]
[1633099733601,0.00121048,46922.0,46920.0,0.213172]
[1633099733797,6.089e-05,46926.0,46920.0,0.213172]
[1633099733798,6.089e-05,46926.0,46920.0,0.4263635]
[1633099734197,0.00046923,46925.0,46920.0,0.4263635]
[1633099734399,6.089e-05,46926.0,46920.0,0.4263635]
[1633099734400,0.00053012,46926.0,46920.0,0.4263635]
[1633099734598,0.00053012,46926.0,46922.0,0.213138]
[1633099734599,6.089e-05,46926.0,46922.0,0.213138]
[1633099734799,0.00046923,46925.0,46922.0,0.42628322]
[1633099735409,6.089e-05,46926.0,46923.0,0.09610304]
[1633099736000,0.03606089,46926.0,46923.0,0.09610304]
[1633099736198,0.03606089,46926.0,46925.0,1.61524168]
[1633099736398,0.03606089,46926.0,46925.0,1.61530255]
[1633099736603,0.03606089,46926.0,46925.0,2.89182904]
[1633099736799,0.03606089,46926.0,46925.0,1.84188991]
[1633099736997,0.42658261,46931.0,46925.0,1.84188991]
[1633099736998,0.42658261,46931.0,46926.0,1.5815521]
[1633099737202,0.42658261,46931.0,46929.0,0.34671701]
[1633099737403,0.42658261,46931.0,46929.0,0.55981401]
[1633099738000,0.42658261,46931.0,46929.0,0.58981401]
[1633099738001,0.45258261,46931.0,46929.0,0.58981401]
[1633099738202,0.02644693,46931.0,46930.0,0.90120206]
[1633099738412,0.02644693,46931.0,46930.0,0.00120206]
[1633099738610,0.02650781,46931.0,46930.0,0.00120206]
[1633099738802,0.02650781,46931.0,46929.0,0.58981401]
[1633099739005,0.02650781,46931.0,46929.0,0.03]
[1633099739804,0.02650781,46931.0,46928.0,0.21308299]
[1633099740005,0.02650781,46931.0,46929.0,0.33727939]
[1633099740006,0.02550781,46931.0,46929.0,0.33727939]
[1633099740206,0.02550781,46931.0,46930.0,0.2232]
[1633099740407,0.02550781,46931.0,46930.0,0.22445909]
[1633099740605,0.02550781,46931.0,46930.0,0.00125909]
[1633099740805,0.02550781,46931.0,46929.0,0.55037139]
[1633099741005,0.02550781,46931.0,46929.0,0.33727939]
[1633099741805,0.02550781,46931.0,46929.0,0.15197578]
[1633099742006,0.02650781,46931.0,46929.0,0.17997578]
[1633099742205,0.31619281,46931.0,46929.0,0.17997578]
[1633099742607,0.31619281,46931.0,46929.0,0.028]
[1633099742814,0.2513404,46930.0,46929.0,0.028]
[1633099743008,0.25180963,46930.0,46929.0,0.028]
[1633099743405,0.25180963,46930.0,46914.0,1.33867546]
[1633099743406,0.31972,46925.0,46914.0,1.33867546]
[1633099743609,0.31972,46925.0,46919.0,0.18219146]
[1633099743807,0.0857137,46926.0,46914.0,0.31061456]
[1633099743808,0.00040833,46924.0,46914.0,0.31061456]
[1633099744009,0.52799249,46929.0,46917.0,0.21316001]
[1633099744010,0.00040833,46925.0,46917.0,0.21316001]
[1633099744209,0.00040833,46928.0,46922.0,0.213147]
[1633099744409,0.42756489,46930.0,46922.0,0.213147]
[1633099744410,0.00040833,46929.0,46922.0,0.213147]
[1633099744808,0.00040833,46929.0,46925.0,0.19612016]
[1633099745009,0.42756489,46930.0,46925.0,0.29390363]
[1633099745210,0.42756489,46930.0,46925.0,0.28390363]
[1633099745407,0.42756489,46930.0,46925.0,0.18612016]
[1633099745607,0.42756489,46930.0,46922.0,0.213147]
[1633099745808,0.319705,46927.0,46923.0,0.21313546]
[1633099746212,0.035,46930.0,46923.0,0.21313546]
[1633099746408,0.035,46930.0,46925.0,0.09032144]
[1633099747210,0.426237,46936.0,46925.0,0.09032144]
[1633099747418,0.00040833,46935.0,46925.0,0.09032144]
[1633099747809,0.08262362,46935.0,46925.0,0.09032144]
[1633099748009,0.11062362,46935.0,46925.0,0.11932144]
[1633099748211,0.00040833,46934.0,46925.0,0.11932144]
[1633099749013,0.0012503,46931.0,46925.0,0.029]
[1633099749213,0.00129667,46926.0,46925.0,0.029]
[1633099749415,0.00129667,46926.0,46920.0,0.2131461]
[1633099749817,0.00040833,46930.0,46920.0,0.2131461]
[1633099750014,0.21070784,46934.0,46920.0,0.2131461]
[1633099750015,0.028,46926.0,46925.0,0.07495306]
[1633099750816,0.028,46926.0,46925.0,0.34694335]
[1633099751215,0.028,46926.0,46925.0,0.07495306]
[1633099751413,0.00040833,46934.0,46925.0,0.07495306]
[1633099751815,0.00040833,46934.0,46930.0,0.2018587]
[1633099752014,0.026,46934.0,46926.0,0.213102]
[1633099752217,6.089e-05,46931.0,46926.0,0.213102]
[1633099752815,6.089e-05,46931.0,46929.0,0.33628718]
[1633099753017,6.089e-05,46931.0,46930.0,0.23861194]
[1633099753416,6.089e-05,46931.0,46929.0,0.33628718]
[1633099753616,6.089e-05,46931.0,46929.0,0.33751779]
[1633099754016,6.089e-05,46931.0,46929.0,0.36151779]
[1633099754017,0.02315687,46931.0,46929.0,0.36151779]
[1633099754413,0.02315687,46931.0,46930.0,0.23692397]
[1633099754614,0.01815687,46931.0,46930.0,0.23692397]
[1633099755417,0.00040833,46940.0,46933.0,0.08436076]
[1633099755614,0.00040833,46940.0,46938.0,0.24151849]
[1633099755818,0.05907303,46941.0,46931.0,0.21309233]
[1633099756019,9.739e-05,46939.0,46933.0,0.015]
[1633099756214,0.00040833,46938.0,46933.0,0.015]
[1633099757414,0.00040833,46938.0,46931.0,0.27792281]
[1633099757618,0.05912948,46938.0,46931.0,0.27792281]
[1633099758018,0.05912948,46938.0,46931.0,0.29492281]
[1633099758019,0.03240833,46938.0,46931.0,0.29492281]
[1633099758219,0.31964,46936.0,46931.0,0.29492281]
[1633099758823,0.00040833,46935.0,46931.0,0.29492281]
[1633099759022,0.31964,46936.0,46931.0,0.29492281]
[1633099759435,0.4850125,46937.0,46931.0,0.27792281]
[1633099759436,0.0587855,46937.0,46931.0,0.27792281]
[1633099759683,9.739e-05,46939.0,46931.0,0.27792281]
[1633099759684,0.0587866,46938.0,46931.0,0.27792281]
[1633099759819,9.739e-05,46939.0,46931.0,0.27792281]
[1633099759820,0.05877999,46937.0,46931.0,0.27792281]
[1633099760020,0.05877999,46937.0,46931.0,0.29292281]
[1633099760021,0.09118832,46937.0,46931.0,0.29292281]
[1633099760220,0.00040833,46936.0,46931.0,0.29292281]
[1633099760420,0.09077999,46937.0,46931.0,0.29292281]
[1633099760421,0.319656,46934.0,46931.0,0.29292281]
[1633099760623,0.09077999,46937.0,46931.0,0.29292281]
[1633099760820,0.03159167,46937.0,46931.0,0.29292281]
[1633099761022,0.09032557,46937.0,46931.0,0.29292281]
[1633099761221,0.03159167,46937.0,46931.0,0.29292281]
[1633099761420,0.05874389,46937.0,46931.0,0.27792281]
[1633099761824,0.05874389,46937.0,46931.0,0.0926038]
[1633099762024,0.08974389,46937.0,46931.0,0.1176038]
[1633099762223,0.40937389,46937.0,46931.0,0.05583064]
[1633099762679,0.40978222,46937.0,46931.0,0.05583064]
[1633099763023,0.40937389,46937.0,46931.0,0.05583064]
[1633099763224,0.40937389,46937.0,46931.0,0.26891664]
[1633099763824,0.05876124,46936.0,46931.0,0.26891664]
[1633099764023,0.05876124,46936.0,46932.0,0.00012177]
[1633099764225,0.05776124,46936.0,46932.0,0.00012177]
[1633099764627,0.35063,46937.0,46932.0,0.00012177]
[1633099765428,0.09150625,46935.0,46932.0,0.00012177]
[1633099765692,0.09150625,46935.0,46931.0,0.213086]
[1633099766027,0.12850625,46935.0,46931.0,0.213086]
[1633099766428,0.037,46935.0,46931.0,0.213086]
[1633099766625,0.03740833,46935.0,46931.0,0.213086]
[1633099766827,0.037,46935.0,46931.0,0.213086]
[1633099767429,0.00127393,46936.0,46931.0,0.213086]
[1633099767626,0.319659,46934.0,46931.0,0.213086]
[1633099767829,0.20391252,46933.0,46931.0,0.213086]
[1633099768028,0.319659,46934.0,46931.0,0.228086]
[1633099768227,0.20415498,46933.0,46931.0,0.44118741]
[1633099768687,0.319659,46934.0,46931.0,0.44118741]
[1633099769231,0.032,46936.0,46931.0,0.44118741]
[1633099769432,9.739e-05,46939.0,46931.0,0.44118741]
[1633099769433,9.739e-05,46939.0,46931.0,0.42618741]
[1633099769434,0.20634529,46939.0,46931.0,0.42618741]
[1633099769631,0.29649717,46938.0,46931.0,0.42618741]
[1633099769830,0.29690604,46937.0,46931.0,0.63926241]
[1633099770028,0.11363166,46939.0,46931.0,0.63926241]
[1633099770231,0.29649641,46938.0,46931.0,0.63926241]
[1633099770431,0.29649641,46938.0,46931.0,0.82470141]
[1633099770630,0.29649641,46938.0,46931.0,0.63926241]
[1633099770631,0.00040833,46937.0,46931.0,0.63926241]
[1633099770831,0.20771529,46937.0,46931.0,0.63926241]
[1633099771029,0.00040833,46938.0,46931.0,0.63926241]
[1633099771231,0.29649549,46937.0,46931.0,0.63926241]
[1633099771831,0.319648,46935.0,46931.0,0.63926241]
[1633099772032,0.07533446,46934.0,46931.0,0.63926241]
[1633099772231,0.20894754,46933.0,46931.0,0.63926241]
[1633099772430,0.20376822,46933.0,46931.0,0.63926241]
[1633099772629,0.205833,46936.0,46931.0,0.63926241]
[1633099772834,0.21293872,46936.0,46931.0,0.40298741]
[1633099773033,0.00040833,46935.0,46931.0,0.40298741]
[1633099773233,0.31966,46933.0,46931.0,0.40298741]
[1633099773436,0.20530115,46932.0,46931.0,0.40298741]
[1633099773634,0.31966,46933.0,46931.0,0.40298741]
[1633099774236,0.24863791,46932.0,46931.0,0.40298741]
[1633099774440,0.24863791,46932.0,46924.0,0.21311674]
[1633099774835,0.00040833,46931.0,46924.0,0.21311674]
[1633099775437,0.21104624,46932.0,46924.0,0.21311674]
[1633099775637,0.00127716,46936.0,46924.0,0.21311674]
[1633099775638,0.31971,46929.0,46924.0,0.21311674]
[1633099775838,0.20841037,46928.0,46924.0,0.21311674]
[1633099776239,0.20841037,46928.0,46924.0,0.23811674]
[1633099776636,0.319697,46927.0,46924.0,0.23811674]
[1633099777436,0.319697,46927.0,46924.0,0.21311674]
[1633099778236,0.319697,46927.0,46924.0,0.22211674]
[1633099778237,0.354697,46927.0,46924.0,0.22211674]
[1633099778642,0.035,46927.0,46924.0,0.22211674]
[1633099779440,0.035,46927.0,46916.0,0.213125]
[1633099779441,0.035,46927.0,46917.0,0.1998]
[1633099779444,0.20411674,46924.0,46917.0,0.1998]
[1633099779644,0.00121299,46918.0,46917.0,0.1998]
[1633099779841,0.02042132,46918.0,46917.0,0.1998]
[1633099780239,0.28995096,46918.0,46917.0,0.1998]
[1633099780443,0.05942132,46918.0,46917.0,0.1998]
[1633099780722,0.27120472,46918.0,46917.0,0.1998]
[1633099780842,0.53580372,46918.0,46917.0,0.1998]
[1633099781241,0.31260372,46918.0,46917.0,0.1998]
[1633099781838,0.31260372,46918.0,46917.0,0.01442005]
[1633099782041,0.27360372,46918.0,46917.0,0.01442005]
[1633099782237,0.30960372,46918.0,46917.0,0.01442005]
[1633099782437,0.30960372,46918.0,46905.0,0.213223]
[1633099782438,0.319839,46912.0,46905.0,0.213223]
[1633099782639,0.426452,46913.0,46905.0,0.213223]
[1633099782640,0.22983172,46911.0,46905.0,0.213223]
[1633099783038,0.23108485,46911.0,46906.0,0.45040361]
[1633099783441,0.23108485,46911.0,46906.0,0.05040361]
[1633099783442,0.33105146,46911.0,46906.0,0.05040361]
[1633099783641,0.22983172,46911.0,46906.0,0.05040361]
[1633099783840,0.00040833,46917.0,46906.0,0.05040361]
[1633099784245,0.00040833,46917.0,46906.0,0.26863259]
[1633099784246,0.032,46911.0,46906.0,0.26863259]
[1633099784441,0.032,46911.0,46909.0,0.10170892]
[1633099784443,0.2617957,46910.0,46909.0,0.10170892]
[1633099784644,0.2617957,46910.0,46909.0,1.50170892]
[1633099784645,0.05413,46910.0,46909.0,1.50170892]
[1633099784844,0.05413,46910.0,46909.0,1.7292516]
[1633099785046,0.18638771,46923.0,46922.0,0.23101163]
[1633099785241,0.20411674,46924.0,46923.0,0.30870544]
[1633099785445,0.20411674,46924.0,46911.0,0.00641854]
[1633099785640,0.20411674,46924.0,46923.0,0.08684178]
[1633099785942,0.20411674,46924.0,46923.0,0.0958034]
[1633099786143,0.23711674,46924.0,46923.0,0.1078034]
[1633099786342,0.23711674,46924.0,46923.0,0.32565826]
[1633099786543,0.00040833,46936.0,46923.0,0.32565826]
[1633099786544,0.00040833,46936.0,46923.0,0.93717988]
[1633099786742,0.00040833,46936.0,46923.0,0.10777944]
[1633099786743,0.07510076,46936.0,46923.0,0.10777944]
[1633099786947,0.07469243,46936.0,46923.0,0.10777944]
[1633099787147,0.00040833,46935.0,46923.0,0.10777944]
[1633099787345,0.00040833,46935.0,46932.0,0.21308659]
[1633099787347,0.32007433,46935.0,46932.0,0.21308659]
[1633099787544,0.32007433,46935.0,46928.0,0.213102]
[1633099787545,0.32007433,46935.0,46928.0,0.06484062]
[1633099787546,0.041399,46934.0,46928.0,0.06484062]
[1633099787746,0.00040833,46933.0,46928.0,0.24652991]
[1633099788144,0.019,46934.0,46928.0,0.25752991]
[1633099788345,0.319679,46933.0,46928.0,0.07584062]
[1633099788544,0.04180733,46932.0,46928.0,0.07584062]
[1633099788748,0.00040833,46932.0,46928.0,0.07584062]
[1633099789345,0.00040833,46932.0,46930.0,0.23249656]
[1633099789545,0.019,46934.0,46930.0,0.23249656]
[1633099789745,0.51579763,46939.0,46930.0,0.23249656]
[1633099789747,0.00040833,46938.0,46930.0,0.23249656]
[1633099789947,0.00040833,46938.0,46933.0,0.2131002]
[1633099790147,0.00040833,46938.0,46935.0,0.213093]
[1633099790549,6.087e-05,46936.0,46935.0,0.213093]
[1633099791549,0.04145987,46936.0,46935.0,0.213093]
[1633099791948,6.087e-05,46936.0,46935.0,0.213093]
[1633099792148,0.03606087,46936.0,46935.0,0.213093]
[1633099793549,0.1071902,46940.0,46935.0,0.213093]
[1633099793550,0.10225107,46940.0,46935.0,0.213093]
[1633099793753,0.319621,46942.0,46935.0,0.213093]
[1633099793754,0.37840205,46942.0,46935.0,0.213093]
[1633099793953,0.319621,46942.0,46935.0,0.213093]
[1633099794153,0.07764682,46945.0,46935.0,0.213093]
[1633099794450,0.07764682,46945.0,46939.0,0.21307478]
[1633099794451,0.00040833,46944.0,46939.0,0.21307478]
[1633099794652,0.09506777,46944.0,46935.0,0.239093]
[1633099795049,0.00040833,46943.0,46935.0,0.239093]
[1633099795250,0.0954761,46944.0,46935.0,0.239093]
[1633099795849,0.00040833,46943.0,46936.0,0.213072]
[1633099796047,0.00040833,46943.0,46939.0,0.21307173]
[1633099796251,0.32001633,46943.0,46939.0,0.21307173]
[1633099796448,0.32001633,46943.0,46941.0,0.213072]
[1633099796651,0.00040833,46942.0,46941.0,0.213072]
[1633099796848,0.00048137,46942.0,46941.0,0.213072]
[1633099797048,0.00170945,46942.0,46941.0,0.213072]
[1633099797655,0.00130112,46942.0,46941.0,0.213072]
[1633099798251,0.00130112,46942.0,46939.0,0.21307173]
[1633099799057,0.00170945,46942.0,46939.0,0.21307173]
[1633099799253,0.00130112,46942.0,46939.0,0.21307173]
[1633099799653,0.00170945,46942.0,46939.0,0.21307173]
[1633099800055,0.319632,46941.0,46939.0,0.21307173]
[1633099800254,0.21466727,46941.0,46939.0,0.21307173]
[1633099801055,7.304e-05,46942.0,46939.0,0.21307173]
[1633099801715,0.01789849,46945.0,46939.0,0.56905736]
[1633099801860,0.01789849,46945.0,46939.0,0.02778317]
[1633099802058,0.08162863,46943.0,46939.0,0.02778317]
[1633099802254,0.01830682,46945.0,46936.0,0.28890152]
[1633099802255,0.01789849,46945.0,46936.0,0.28492106]
[1633099802660,0.00121457,46942.0,46936.0,0.20909154]
[1633099803057,0.01789849,46945.0,46936.0,0.20909154]
[1633099803460,0.319619,46940.0,46936.0,0.20909154]
[1633099803658,5.28e-06,46940.0,46936.0,0.20909154]
[1633099804056,5.28e-06,46940.0,46939.0,0.21307173]
[1633099804255,0.02800528,46940.0,46939.0,0.21307173]
[1633099805255,0.34762428,46940.0,46939.0,0.21307173]
[1633099805664,0.34762428,46940.0,46936.0,0.026]
[1633099805665,0.34888645,46940.0,46936.0,0.026]
[1633099805859,0.041399,46939.0,46924.0,0.97908069]
[1633099806061,0.00126745,46940.0,46924.0,0.97908069]
[1633099806062,0.00040833,46938.0,46924.0,0.766]
[1633099806263,0.00040833,46939.0,46924.0,0.766]
[1633099806462,0.319652,46935.0,46924.0,0.766]
[1633099806663,0.319652,46935.0,46928.0,0.27120461]
[1633099806665,0.00129521,46934.0,46928.0,0.27120461]
[1633099806865,0.00040833,46933.0,46929.0,0.10871734]
[1633099807063,0.00170354,46934.0,46929.0,0.10871734]
[1633099807264,0.426206,46939.0,46929.0,0.10871734]
[1633099807265,0.426206,46939.0,46932.0,9.74e-05]
[1633099807266,0.00040833,46938.0,46932.0,9.74e-05]
[1633099807733,0.041399,46937.0,46932.0,9.74e-05]
[1633099808065,0.00040833,46938.0,46932.0,9.74e-05]
[1633099808066,0.319658,46934.0,46932.0,0.08577991]
[1633099808664,0.319658,46934.0,46932.0,9.74e-05]
[1633099809065,0.20621118,46933.0,46932.0,9.74e-05]
[1633099809264,0.67390218,46933.0,46932.0,9.74e-05]
[1633099809661,0.467691,46933.0,46932.0,9.74e-05]
[1633099810067,0.467691,46933.0,46932.0,0.22282158]
[1633099810068,0.041399,46933.0,46932.0,0.22282158]
[1633099810270,0.03919206,46933.0,46932.0,0.22282158]
[1633099811068,0.51850666,46943.0,46932.0,0.22282158]
[1633099811069,0.01789849,46945.0,46932.0,0.22282158]
[1633099811070,0.01789849,46945.0,46943.0,0.08957252]
[1633099811277,0.01789849,46945.0,46944.0,3.03936388]
[1633099811467,0.01789849,46945.0,46944.0,3.57803988]
[1633099811663,0.01789849,46945.0,46944.0,1.47803988]
[1633099812066,0.01789849,46945.0,46944.0,1.2762393]
[1633099812266,0.01789849,46945.0,46944.0,1.5344393]
[1633099812664,0.00032419,46948.0,46944.0,1.5344393]
[1633099812665,0.00032419,46948.0,46947.0,0.00120286]
[1633099812865,0.01,46949.0,46947.0,0.24039986]
[1633099812866,4.19e-06,46949.0,46947.0,0.24039986]
[1633099813067,0.3,46955.0,46947.0,0.24039986]
[1633099813068,0.3,46955.0,46948.0,0.50622653]
[1633099813069,0.28117455,46955.0,46948.0,0.50622653]
[1633099813266,0.28117455,46955.0,46954.0,1.71951578]
[1633099813468,0.28117455,46955.0,46954.0,2.80058492]
[1633099813469,0.20199,46955.0,46954.0,2.80058492]
[1633099813737,0.00076791,46956.0,46954.0,2.80058492]
[1633099813738,0.00076791,46956.0,46955.0,0.296193]
[1633099813739,7.91e-06,46956.0,46955.0,0.296193]
[1633099813868,7.91e-06,46956.0,46955.0,0.64821981]
[1633099814067,0.00500791,46969.0,46966.0,0.00122678]
[1633099814267,0.00500791,46969.0,46968.0,0.00125317]
[1633099814465,0.00500791,46969.0,46968.0,0.52707217]
[1633099814669,0.00500791,46969.0,46968.0,0.99991218]
[1633099814872,0.00500791,46969.0,46968.0,1.09272253]
[1633099814875,0.00469937,46969.0,46968.0,1.09272253]
[1633099815265,0.01657069,46981.0,46968.0,1.09272253]
[1633099815468,0.01657069,46981.0,46980.0,0.00121367]
[1633099815671,0.01657069,46981.0,46980.0,0.67913292]
[1633099815866,0.01657069,46981.0,46980.0,0.59217109]
[1633099815867,0.01687477,46981.0,46980.0,0.59217109]
[1633099816067,0.01687477,46981.0,46980.0,0.92859708]
[1633099816068,0.00687477,46981.0,46980.0,0.92859708]
[1633099816269,0.00687477,46981.0,46980.0,1.31851357]
[1633099816738,0.00687477,46981.0,46980.0,1.0665731]
[1633099817672,0.00687477,46981.0,46980.0,0.88446552]
[1633099818270,0.00687477,46981.0,46980.0,0.91846552]
[1633099818473,0.00687477,46981.0,46980.0,0.06801944]
[1633099818671,0.00687477,46981.0,46974.0,0.319299]
[1633099818672,0.00687477,46981.0,46968.0,0.0188]
[1633099818674,0.06401,46980.0,46968.0,0.0188]
[1633099818874,0.06401,46980.0,46963.0,0.212902]
[1633099818878,0.00123238,46975.0,46963.0,0.212902]
[1633099819071,0.00015816,46969.0,46963.0,0.212902]
[1633099819271,0.28321343,46979.0,46963.0,0.212902]
[1633099819272,0.00040833,46978.0,46963.0,0.212902]
[1633099819471,0.0872395,46975.0,46969.0,0.20089485]
[1633099819672,0.319413,46973.0,46969.0,0.20089485]
[1633099819876,0.319413,46973.0,46968.0,0.00049008]
[1633099819877,0.00017033,46970.0,46968.0,0.00049008]
[1633099820273,0.2363209,46974.0,46968.0,0.00049008]
[1633099820274,0.00015816,46969.0,46968.0,0.00049008]
[1633099820872,0.00015816,46969.0,46968.0,0.4130772]
[1633099821272,0.00015816,46969.0,46968.0,0.1938842]
[1633099821872,0.00015816,46969.0,46968.0,0.10873049]
[1633099822271,0.00015816,46969.0,46968.0,0.13873049]
[1633099822739,0.00015816,46969.0,46968.0,0.32253434]
[1633099823072,0.00015816,46969.0,46968.0,0.54172734]
[1633099823876,0.00015816,46969.0,46968.0,1.1166541]
[1633099824075,0.00015816,46969.0,46968.0,1.14149007]
[1633099824275,0.00015816,46969.0,46968.0,1.15149007]
[1633099824672,0.00015816,46969.0,46968.0,2.35149007]
[1633099825074,0.00015816,46969.0,46968.0,2.56434187]
[1633099825272,0.00015816,46969.0,46968.0,2.56521837]
[1633099825742,0.00015816,46969.0,46968.0,2.52521837]
[1633099826071,0.00015816,46969.0,46968.0,1.32521837]
[1633099826273,0.00015816,46969.0,46968.0,1.02231216]
[1633099826473,0.00015816,46969.0,46968.0,1.02219039]
[1633099826671,0.00015816,46969.0,46968.0,1.37219039]
[1633099826873,0.00015816,46969.0,46968.0,1.37231216]
[1633099827073,0.00015816,46969.0,46968.0,1.02231216]
[1633099827274,0.00015816,46969.0,46968.0,1.43185696]
[1633099827477,0.08983163,46985.0,46968.0,1.43185696]
[1633099827479,0.31140367,46991.0,46986.0,0.23527412]
[1633099827675,0.42743334,46994.0,46986.0,0.23527412]
[1633099827677,0.041399,46988.0,46986.0,0.23527412]
[1633099827870,0.01,46989.0,46985.0,0.03301677]
[1633099827871,0.01,46989.0,46985.0,0.2167026]
[1633099827872,0.00021891,46987.0,46985.0,0.2167026]
[1633099828076,0.00021891,46987.0,46981.0,0.00656493]
[1633099828273,0.01,46989.0,46981.0,0.00656493]
[1633099828274,0.00020675,46986.0,46981.0,0.00656493]
[1633099828474,0.00015812,46982.0,46981.0,0.3122748]
[1633099828736,0.00015812,46982.0,46981.0,0.5314678]
[1633099828875,0.00015812,46982.0,46981.0,0.41989596]
[1633099829074,0.00015812,46982.0,46981.0,0.32703709]
[1633099829473,0.00015812,46982.0,46981.0,0.32575793]
[1633099829675,0.00015812,46982.0,46981.0,0.31575793]
[1633099830076,1.601e-05,46989.0,46982.0,0.219193]
[1633099830275,1.601e-05,46989.0,46981.0,0.1]
[1633099830276,0.00040833,46988.0,46981.0,0.1]
[1633099830471,0.00040833,46988.0,46981.0,0.18535049]
[1633099830675,0.00040833,46988.0,46981.0,0.20935049]
[1633099830876,0.00040833,46988.0,46987.0,0.1]
[1633099831078,0.00040833,46988.0,46987.0,0.095]
[1633099831079,0.044868,46988.0,46987.0,0.095]
[1633099831276,0.04494096,46988.0,46987.0,0.095]
[1633099831476,7.296e-05,46988.0,46987.0,0.095]
[1633099831744,0.22327296,46988.0,46987.0,0.095]
[1633099831881,0.27058674,46988.0,46987.0,0.085]
[1633099832079,0.00122868,46997.0,46987.0,0.08622898]
[1633099832279,0.00122868,46997.0,46987.0,0.085]
[1633099832676,0.00122868,46997.0,46987.0,0.111]
[1633099832677,0.028,46988.0,46987.0,0.111]
[1633099832878,0.028,46988.0,46987.0,0.25236181]
[1633099833079,0.028,46988.0,46987.0,0.026]
[1633099833080,0.2512,46988.0,46987.0,0.026]
[1633099833284,0.028,46988.0,46987.0,0.026]
[1633099833878,0.028,46988.0,46987.0,0.1]
[1633099834078,0.42695668,46997.0,46987.0,0.1]
[1633099834285,0.2232,46992.0,46987.0,0.1]
[1633099834765,0.2232,46992.0,46983.0,0.37322713]
[1633099834766,0.2232,46992.0,46983.0,0.10798567]
[1633099834883,0.035,46988.0,46987.0,0.11]
[1633099835082,0.035,46988.0,46980.0,0.00122917]
[1633099835083,0.00125131,46982.0,46980.0,0.00122917]
[1633099835284,0.00123391,46982.0,46980.0,0.00122917]
[1633099835482,0.00123391,46982.0,46981.0,0.21900881]
[1633099836080,0.00123391,46982.0,46981.0,6.081e-05]
[1633099836691,0.22443391,46982.0,46976.0,0.04139982]
[1633099836887,0.05022062,46978.0,46976.0,0.04139982]
[1633099837081,0.05022062,46978.0,46963.0,0.09755196]
[1633099837082,0.05022062,46978.0,46960.0,0.9499]
[1633099837085,0.26803177,46973.0,46960.0,0.9499]
[1633099837286,0.26803177,46973.0,46960.0,0.0876715]
[1633099837287,0.00125461,46961.0,46960.0,0.0876715]
[1633099837482,0.00121711,46967.0,46965.0,0.01144726]
[1633099837694,0.46687971,46971.0,46965.0,0.01144726]
[1633099837885,0.212927,46971.0,46968.0,0.2232]
[1633099838083,0.23460587,46977.0,46966.0,0.00126479]
[1633099838084,0.23460587,46977.0,46970.0,0.00121429]
[1633099838288,0.212896,46971.0,46970.0,0.00121429]
[1633099838687,0.2129,46979.0,46970.0,0.23896229]
[1633099838886,0.2129,46979.0,46978.0,0.09794516]
[1633099839087,0.2129,46979.0,46976.0,0.00126536]
[1633099839088,0.2129,46979.0,46977.0,0.24522755]
[1633099839280,0.2129,46979.0,46976.0,0.00132618]
[1633099839485,0.2129,46979.0,46976.0,6.082e-05]
[1633099839882,0.2129,46979.0,46977.0,0.07913985]
[1633099840282,0.2129,46979.0,46977.0,0.27566953]
[1633099840481,0.2129,46979.0,46977.0,0.60750784]
[1633099840683,0.2129,46979.0,46978.0,0.00121857]
[1633099840882,0.2129,46979.0,46978.0,0.22016657]
[1633099841287,0.2129,46979.0,46978.0,0.00121857]
[1633099842086,0.2129,46979.0,46977.0,0.55793086]
[1633099842282,0.425784,46979.0,46977.0,0.49622642]
[1633099842484,0.425784,46979.0,46977.0,0.46422642]
[1633099843085,0.425784,46979.0,46977.0,0.032]
[1633099843288,0.425784,46979.0,46976.0,6.082e-05]
[1633099843487,0.425784,46979.0,46978.0,0.00122622]
[1633099843884,0.425784,46979.0,46977.0,0.11]
[1633099844687,0.425784,46979.0,46977.0,0.429289]
[1633099844886,0.425784,46979.0,46977.0,0.11]
[1633099845086,0.439784,46979.0,46977.0,0.14]
[1633099845287,0.439784,46979.0,46978.0,0.45088006]
[1633099845486,0.439784,46979.0,46978.0,0.00088006]
[1633099846487,0.425784,46979.0,46978.0,0.00088006]
[1633099847087,0.425784,46979.0,46978.0,0.02988006]
[1633099847088,0.457784,46979.0,46978.0,0.02988006]
[1633099847490,0.244884,46979.0,46978.0,0.02988006]
[1633099847692,0.244884,46979.0,46978.0,0.218948]
[1633099848492,0.212884,46979.0,46978.0,0.218948]
[1633099849091,0.212884,46979.0,46978.0,0.258948]
[1633099850093,0.212884,46979.0,46978.0,0.2601973]
[1633099850491,0.212884,46979.0,46978.0,0.2201973]
[1633099851091,0.212884,46979.0,46978.0,0.2601973]
[1633099851489,0.21315703,46979.0,46978.0,0.2601973]
[1633099851693,0.21315703,46979.0,46978.0,0.4833973]
[1633099851890,0.21315703,46979.0,46978.0,0.2601973]
[1633099852495,0.21315703,46979.0,46978.0,0.2201973]
[1633099852767,0.21315703,46979.0,46977.0,0.05023989]
[1633099853095,0.21315703,46979.0,46978.0,0.785]
[1633099853299,0.21315703,46979.0,46978.0,0.253948]
[1633099853496,0.21315703,46979.0,46978.0,0.035]
[1633099853696,0.21315703,46979.0,46978.0,0.03620628]
[1633099854293,0.21315703,46979.0,46978.0,0.25015428]
[1633099854692,0.21315703,46979.0,46978.0,0.22015428]
[1633099855099,0.18315703,46979.0,46978.0,0.25715428]
[1633099856300,0.18315703,46979.0,46978.0,0.037]
[1633099856497,0.18315703,46979.0,46977.0,0.05023989]
[1633099856904,0.18315703,46979.0,46977.0,0.03523989]
[1633099856906,0.22449697,46978.0,46977.0,0.03523989]
[1633099857101,0.22449697,46978.0,46977.0,0.03]
[1633099857103,0.72211939,46978.0,46977.0,0.03]
[1633099857301,1.04147839,46978.0,46976.0,6.082e-05]
[1633099857497,0.21243109,46977.0,46976.0,6.082e-05]
[1633099857698,0.20743109,46977.0,46976.0,6.082e-05]
[1633099859099,0.43063109,46977.0,46976.0,6.082e-05]
[1633099859295,0.46263109,46977.0,46976.0,6.082e-05]
[1633099859492,0.46263109,46977.0,46965.0,0.01144726]
[1633099859694,0.21292127,46972.0,46965.0,0.01144726]
[1633099859896,0.212922,46969.0,46965.0,0.01144726]
[1633099860096,0.22084371,46968.0,46965.0,0.41005568]
[1633099860496,0.22084371,46968.0,46967.0,1.2001095]
[1633099860694,0.22084371,46968.0,46967.0,0.2190575]
[1633099860895,0.22084371,46968.0,46967.0,0.0001095]